bitfinex-derivatives/quotes_ETHF0:USTF0_20250114
["timestamp","ask_amount","ask_price","bid_price","bid_amount"]
[1736870261242,0.31214,3204.8,3204.6,41.18436975]
[1736870261447,0.31214,3204.8,3204.6,40.8]
[1736870261647,0.4986,3205.0,3204.6,40.8]
[1736870261855,0.4986,3205.0,3204.2,0.4862]
[1736870262150,3.2078,3204.7,3204.3,0.38439829]
[1736870262447,0.31217,3204.5,3204.4,0.38439829]
[1736870262946,3.26627021,3204.6,3204.4,0.38439211]
[1736870263145,3.26627021,3204.6,3203.6,0.4703]
[1736870263346,6.24927021,3204.6,3203.7,0.38434914]
[1736870263555,0.31221,3204.1,3203.8,0.38434914]
[1736870263747,0.31221,3204.0,3203.9,0.38434914]
[1736870263952,0.31221,3204.1,3203.9,41.18434914]
[1736870264251,0.3122,3204.2,3204.0,0.38434914]
[1736870264550,0.31219,3204.2,3204.1,0.38434914]
[1736870264941,3.2078,3204.3,3204.1,0.38434914]
[1736870265146,3.2078,3204.3,3203.9,40.8]
[1736870265343,0.31221,3204.1,3204.0,0.38422311]
[1736870265747,0.31221,3204.0,3203.9,40.8]
[1736870265955,0.31221,3204.0,3203.9,41.18423197]
[1736870266258,3.90673159,3204.0,3203.9,0.38423197]
[1736870267052,3.90673159,3204.0,3203.6,41.11225]
[1736870267249,0.31221,3204.0,3203.7,0.3840621]
[1736870267460,0.31222,3203.9,3203.8,0.3840621]
[1736870268749,3.81423428,3203.9,3203.8,0.3840621]
[1736870269158,2.983,3204.2,3203.8,0.3840621]
[1736870269354,0.31221,3204.0,3203.9,0.3840621]
[1736870269555,3.47499578,3204.1,3203.6,40.8]
[1736870269854,0.31223,3203.9,3203.6,40.8]
[1736870270960,3.2078,3204.3,3203.8,0.31223]
[1736870271157,0.31221,3204.1,3203.8,0.31223]
[1736870271551,3.2078,3204.3,3203.6,40.8]
[1736870271754,3.51999,3204.3,3203.7,0.38395514]
[1736870271953,3.2078,3204.3,3203.8,0.38395514]
[1736870272158,3.45103985,3204.2,3203.6,40.8]
[1736870272359,0.31223,3203.9,3203.7,0.38390484]
[1736870272557,0.31223,3203.9,3203.6,40.8]
[1736870272756,0.31224,3203.7,3203.6,40.8]
[1736870274462,0.31223,3203.9,3203.6,40.8]
[1736870274658,0.31223,3203.9,3203.6,41.11225]
[1736870275156,0.31224,3203.7,3203.6,40.8]
[1736870275553,3.2078,3203.9,3203.6,40.8]
[1736870275758,0.31226,3203.5,3203.4,0.38496952]
[1736870275958,3.52006,3203.5,3203.4,0.38496952]
[1736870276171,6.8713329,3203.5,3203.4,0.38496952]
[1736870277265,10.16550388,3203.5,3203.4,0.38496952]
[1736870277453,14.85324388,3203.5,3202.2,0.31238]
[1736870277763,14.85324388,3203.5,3202.1,3.2078]
[1736870277764,0.31239,3202.3,3202.1,3.2078]
[1736870278061,7.28278098,3202.9,3202.1,3.2078]
[1736870278262,0.31237,3202.4,3202.1,3.5202]
[1736870278462,0.31237,3202.4,3202.1,3.2078]
[1736870279456,0.4805,3202.7,3202.1,3.2078]
[1736870279653,0.4805,3202.7,3202.1,3.5202]
[1736870279859,3.47268438,3202.6,3202.1,3.5202]
[1736870280059,0.31236,3202.5,3202.1,3.5202]
[1736870280272,3.47268438,3202.6,3202.1,3.2078]
[1736870280467,3.47268438,3202.6,3202.3,0.31237]
[1736870280669,3.2078,3202.9,3202.1,3.2078]
[1736870281070,3.52013,3202.9,3202.5,0.31235]
[1736870281365,3.2078,3202.9,3202.1,3.2078]
[1736870281556,3.2078,3202.9,3202.1,3.52019]
[1736870281557,0.31237,3202.5,3202.1,3.52019]
[1736870281762,3.2078,3202.4,3201.7,3.6659]
[1736870282071,0.31241,3202.0,3201.7,0.4581]
[1736870282262,0.4759,3202.3,3201.7,0.4581]
[1736870282464,0.4759,3202.3,3201.7,3.6659]
[1736870283162,0.3124,3202.2,3201.8,0.31242]
[1736870283367,0.4759,3202.3,3201.9,0.31242]
[1736870283767,0.3124,3202.2,3201.7,3.6659]
[1736870284067,0.4759,3202.3,3201.7,3.6659]
[1736870284270,0.4759,3202.3,3201.9,0.31241]
[1736870284573,0.4773,3202.4,3201.7,4.447]
[1736870284775,0.4773,3202.4,3201.7,3.6659]
[1736870284967,0.78967,3202.4,3202.0,41.1124]
[1736870285170,0.78967,3202.4,3202.1,0.3124]
[1736870285664,0.4759,3202.7,3202.0,40.8]
[1736870286070,3.40872278,3202.6,3202.0,40.8]
[1736870286272,0.31234,3202.7,3202.4,0.31236]
[1736870286573,0.31235,3202.7,3202.4,0.31237]
[1736870286870,0.31234,3202.8,3202.5,0.31236]
[1736870287070,0.31234,3202.7,3202.5,0.31236]
[1736870287275,0.31234,3202.7,3202.1,3.2078]
[1736870287276,0.31235,3202.6,3202.4,0.31237]
[1736870287472,3.58047015,3202.7,3202.4,0.31237]
[1736870287473,0.31235,3202.7,3202.4,0.31236]
[1736870287872,0.4838,3203.1,3202.2,3.29417098]
[1736870288073,0.7961,3203.1,3202.8,0.31232]
[1736870288372,0.4838,3203.1,3202.5,3.2078]
[1736870288573,0.31232,3202.9,3202.7,0.31233]
[1736870289067,0.31232,3202.9,3202.5,3.2078]
[1736870289068,0.31233,3202.9,3202.3,0.4685]
[1736870289270,3.2078,3202.8,3202.1,3.2078]
[1736870289575,0.31238,3202.3,3202.0,41.11241]
[1736870289875,3.29417098,3202.6,3201.9,0.31241]
[1736870290074,0.31239,3202.3,3201.9,0.31241]
[1736870290476,0.31239,3202.3,3201.9,41.11242]
[1736870290669,3.42654569,3202.5,3201.9,41.11242]
[1736870291067,0.31239,3202.3,3201.9,41.11242]
[1736870291272,0.31237,3202.4,3202.1,0.3124]
[1736870291470,0.31237,3202.4,3202.1,0.31239]
[1736870291670,3.52669168,3202.5,3201.9,40.8]
[1736870291973,0.31239,3202.3,3202.0,0.31241]
[1736870292169,0.31239,3202.3,3201.9,40.8]
[1736870292471,0.31238,3202.3,3202.0,0.31241]
[1736870293673,3.52669168,3202.5,3202.2,3.2078]
[1736870293874,0.31237,3202.4,3202.1,0.31239]
[1736870294074,3.83905168,3202.5,3202.2,0.31238]
[1736870294266,3.52669168,3202.5,3201.9,40.8]
[1736870294676,0.31239,3202.2,3201.9,41.11241]
[1736870294878,3.52669168,3202.5,3201.9,40.8]
[1736870295169,0.31239,3202.2,3202.0,0.31241]
[1736870295370,0.31239,3202.3,3202.0,0.31241]
[1736870295571,0.31239,3202.2,3201.9,40.8]
[1736870295773,3.2078,3202.3,3201.9,40.8]
[1736870295973,0.31238,3202.3,3202.0,0.3124]
[1736870296172,3.2078,3202.8,3201.9,40.8]
[1736870296374,3.2078,3202.8,3202.1,0.3124]
[1736870296573,0.3124,3202.2,3201.9,40.8]
[1736870296875,0.3124,3202.2,3201.9,41.11241]
[1736870297178,3.2078,3202.8,3202.2,0.31238]
[1736870297179,0.31236,3202.5,3202.2,0.31238]
[1736870297675,3.4331037,3202.5,3202.4,0.31237]
[1736870297876,3.2078,3203.2,3202.2,7.28294098]
[1736870298073,3.2078,3203.2,3202.2,3.98877]
[1736870298274,3.33219702,3202.9,3202.2,3.2078]
[1736870298588,0.31238,3202.4,3202.1,0.3124]
[1736870298781,3.2078,3202.8,3201.9,41.04827076]
[1736870299079,3.59493598,3202.6,3201.9,41.04827076]
[1736870299376,3.59493598,3202.6,3202.5,0.31236]
[1736870299580,3.2078,3203.2,3202.9,0.31232]
[1736870299876,0.3123,3203.1,3202.9,0.31232]
[1736870300272,3.2078,3203.2,3202.6,3.2078]
[1736870300473,0.31235,3202.6,3202.5,0.4845]
[1736870300680,3.2078,3202.8,3202.0,0.4578]
[1736870300880,0.31235,3202.6,3202.0,0.4578]
[1736870301183,0.31236,3202.5,3202.0,0.4578]
[1736870301383,0.31238,3202.3,3202.1,0.3124]
[1736870301780,0.31237,3202.4,3202.1,0.31239]
[1736870301986,0.31238,3202.3,3202.0,0.7702]
[1736870302276,3.37504373,3202.6,3202.0,0.4578]
[1736870302681,0.31237,3202.4,3202.1,0.31239]
[1736870302882,0.31236,3202.5,3202.1,0.31239]
[1736870303182,3.93517118,3202.4,3202.1,0.31239]
[1736870303483,0.9782,3202.7,3202.0,0.4578]
[1736870303777,3.93515118,3202.6,3202.3,0.31237]
[1736870303982,0.9782,3202.7,3202.2,3.2078]
[1736870304185,3.2078,3202.4,3201.9,41.2579]
[1736870304379,3.2078,3202.4,3201.9,0.4579]
[1736870304584,0.31239,3202.2,3201.9,0.77031]
[1736870304883,0.31239,3202.2,3202.0,41.11241]
[1736870305378,4.27237098,3202.7,3202.0,44.0078]
[1736870305379,0.9782,3202.7,3202.0,44.0078]
[1736870305682,3.88799104,3202.5,3202.2,0.31239]
[1736870305881,3.57562104,3202.5,3202.4,0.31237]
[1736870306080,3.2078,3202.8,3202.5,0.31236]
[1736870306283,0.31234,3202.7,3202.4,0.31236]
[1736870306484,3.48518676,3202.7,3202.4,0.31237]
[1736870306982,3.79752676,3202.7,3202.1,0.4734]
[1736870307182,3.79752676,3202.7,3202.5,0.31236]
[1736870307384,3.79752676,3202.7,3202.4,0.31236]
[1736870307786,0.31235,3202.6,3202.2,0.31239]
[1736870308084,3.48518676,3202.7,3202.1,0.71997274]
[1736870308283,3.48518676,3202.7,3202.1,1.03236274]
[1736870308682,3.48518676,3202.7,3202.1,0.78579]
[1736870308883,3.2078,3202.4,3202.0,40.8]
[1736870309189,0.31241,3202.1,3201.9,0.4579]
[1736870309378,4.21375842,3202.3,3201.9,0.4579]
[1736870309586,0.3124,3202.2,3201.9,0.77032]
[1736870309784,0.31239,3202.2,3201.9,41.57032]
[1736870309982,0.3124,3202.1,3201.9,41.2579]
[1736870310284,0.31239,3202.2,3201.9,41.57032]
[1736870310685,0.31239,3202.2,3201.7,0.25345523]
[1736870310894,0.3124,3202.1,3201.8,0.31242]
[1736870311192,0.31239,3202.2,3201.9,41.11241]
[1736870311383,0.31241,3202.0,3201.9,40.8]
[1736870311582,3.42556482,3202.0,3201.4,0.31246]
[1736870311778,3.42556482,3202.1,3201.4,3.2078]
[1736870311983,3.2078,3202.0,3201.5,40.8]
[1736870312388,3.2078,3202.0,3201.9,0.31242]
[1736870312896,3.2078,3202.7,3201.9,3.2078]
[1736870313090,0.31238,3202.3,3202.0,0.3124]
[1736870313287,3.77341013,3202.6,3202.2,0.31238]
[1736870313592,0.31236,3202.5,3202.2,0.31238]
[1736870313787,3.77341013,3202.6,3201.9,3.2078]
[1736870313986,3.28011013,3202.6,3202.0,0.31241]
[1736870314191,3.52015,3202.7,3202.4,0.31236]
[1736870314396,3.2078,3203.1,3202.3,3.2078]
[1736870314689,3.36286667,3202.9,3202.7,0.31234]
[1736870314881,3.36286667,3202.9,3202.8,0.31233]
[1736870315294,3.36286667,3202.9,3202.4,0.4744]
[1736870315491,3.2078,3203.1,3202.5,0.78091]
[1736870315693,3.2078,3203.1,3203.0,0.31231]
[1736870315988,3.2078,3203.5,3202.7,3.2078]
[1736870316190,0.31228,3203.4,3202.7,3.98864]
[1736870316490,3.2078,3203.5,3203.4,0.31227]
[1736870316899,3.2078,3203.5,3202.8,0.78083]
[1736870317099,0.9364,3203.6,3203.1,3.2078]
[1736870317394,0.9364,3203.6,3203.5,0.31226]
[1736870317596,0.4713,3203.6,3203.4,0.31227]
[1736870317791,0.4713,3203.6,3203.3,0.31227]
[1736870317993,0.78355,3203.6,3203.3,0.31228]
[1736870318188,0.4713,3203.6,3203.4,0.31227]
[1736870318392,0.4713,3203.6,3203.1,3.6883]
[1736870318694,0.4713,3203.6,3203.1,3.2078]
[1736870318995,3.34799045,3203.5,3203.1,3.2078]
[1736870319186,0.31229,3203.2,3203.1,3.2078]
[1736870319391,0.31233,3202.9,3202.6,3.7024]
[1736870319685,0.4905,3203.1,3202.6,3.7024]
[1736870319886,3.4370357,3202.8,3202.5,0.24685836]
[1736870320091,0.31236,3202.5,3202.2,3.52019]
[1736870320293,0.4931,3202.7,3202.2,3.52019]
[1736870320500,0.31237,3202.4,3202.2,3.2078]
[1736870320699,3.34114505,3202.6,3202.2,3.2078]
[1736870321401,0.31237,3202.5,3202.2,3.2078]
[1736870321596,0.31237,3202.5,3202.2,3.52019]
[1736870321798,0.31238,3202.3,3202.2,3.2078]
[1736870321999,3.34114505,3202.6,3202.2,3.2078]
[1736870322295,0.31237,3202.5,3202.2,3.2078]
[1736870322497,3.34114505,3202.6,3202.2,3.2078]
[1736870322696,3.65349505,3202.6,3202.2,3.52018]
[1736870322897,0.31236,3202.5,3202.2,3.52018]
[1736870323205,0.80544,3202.7,3202.3,0.31237]
[1736870323702,0.4931,3202.7,3202.2,3.2078]
[1736870323902,0.80545,3202.7,3202.3,0.31238]
[1736870324203,0.31231,3203.0,3202.2,6.50197098]
[1736870324398,0.31233,3202.8,3202.4,0.31237]
[1736870324800,0.31236,3202.6,3202.3,0.5002]
[1736870324999,0.31235,3202.6,3202.2,3.52019]
[1736870325198,0.78083,3202.9,3202.2,3.2078]
[1736870325404,0.31238,3202.4,3202.2,3.2078]
[1736870325606,0.78083,3202.8,3202.2,3.2078]
[1736870325806,0.31237,3202.5,3202.2,3.2078]
[1736870326004,3.34114039,3202.7,3202.2,3.2078]
[1736870326206,0.31237,3202.4,3202.2,3.2078]
[1736870326903,3.34114039,3202.7,3202.2,3.2078]
[1736870327105,0.31237,3202.4,3202.2,3.2078]
[1736870327908,0.31236,3202.5,3202.2,3.52019]
[1736870328211,4.07497098,3203.0,3202.2,3.2078]
[1736870328506,0.31236,3202.5,3202.2,3.2078]
[1736870328810,0.31236,3202.5,3202.2,3.52019]
[1736870329209,0.31236,3202.5,3202.2,3.2078]
[1736870329412,0.31236,3202.5,3202.2,3.52019]
[1736870330111,0.31237,3202.5,3202.2,3.2078]
[1736870330311,3.2078,3202.7,3202.0,0.5002]
[1736870330605,0.31237,3202.4,3201.8,3.45152634]
[1736870330811,0.3124,3202.2,3201.9,0.31241]
[1736870331011,0.4538,3202.3,3201.8,3.45152634]
[1736870331212,0.76618,3202.3,3202.0,0.3124]
[1736870331413,0.76618,3202.3,3202.0,0.31241]
[1736870332510,0.4538,3202.3,3202.0,0.31241]
[1736870332713,0.76618,3202.3,3202.0,0.31241]
[1736870333715,0.4538,3202.3,3201.8,3.45152634]
[1736870334010,0.31239,3202.2,3201.9,0.31241]
[1736870334210,0.76619,3202.3,3202.0,0.31241]
[1736870334412,3.6616,3202.3,3201.8,3.2078]
[1736870334606,0.4983,3202.2,3201.7,40.8]
[1736870334812,0.31243,3201.8,3201.7,40.8]
[1736870335715,0.31243,3201.8,3201.5,0.31245]
[1736870336215,0.31243,3201.9,3201.5,40.8]
[1736870336409,2.983,3202.1,3201.8,0.31242]
[1736870336713,0.31241,3202.0,3201.7,0.31243]
[1736870336909,2.983,3202.1,3201.5,40.8]
[1736870337109,2.983,3202.1,3201.6,0.78113]
[1736870337308,2.983,3202.1,3201.8,3.2078]
[1736870337615,2.983,3202.1,3202.0,0.31241]
[1736870337818,0.31235,3202.6,3202.3,0.31237]
[1736870338012,3.52015,3202.7,3202.2,3.2078]
[1736870338208,3.2078,3202.7,3202.2,3.2078]
[1736870338421,0.31236,3202.5,3202.4,40.8]
[1736870338714,0.31236,3202.6,3202.4,40.8]
[1736870338920,0.31236,3202.5,3202.4,40.8]
[1736870339420,3.81783274,3202.5,3202.4,40.8]
[1736870340619,3.50547274,3202.5,3202.2,3.2078]
[1736870340918,3.50547274,3202.5,3202.0,0.7664]
[1736870340919,0.31238,3202.3,3202.0,0.7664]
[1736870341122,3.50547274,3202.5,3202.1,40.8]
[1736870341707,6.31110967,3202.5,3202.1,40.8]
[1736870342213,6.31110967,3202.5,3202.0,0.76641]
[1736870342517,6.31110967,3202.5,3201.8,3.2078]
[1736870342719,6.31110967,3202.5,3201.9,40.8]
[1736870342919,6.31110967,3202.5,3202.0,0.3124]
[1736870343119,6.31110967,3202.5,3201.9,40.8]
[1736870343318,6.31110967,3202.5,3202.0,0.31241]
[1736870343820,6.31110967,3202.5,3202.1,0.3124]
[1736870344023,6.31110967,3202.5,3202.0,0.3124]
[1736870344317,6.31110967,3202.5,3201.9,40.8]
[1736870344822,2.72141808,3202.4,3201.9,40.8]
[1736870345116,2.80563693,3202.5,3201.8,3.2078]
[1736870345326,3.61743522,3202.3,3202.2,0.31239]
[1736870345622,2.80563693,3202.5,3201.9,41.2727]
[1736870345918,3.41076995,3202.4,3201.9,41.11242]
[1736870346214,3.41076995,3202.4,3201.9,40.8]
[1736870346410,3.41076995,3202.4,3202.2,0.31238]
[1736870346615,2.80563693,3202.5,3201.9,41.2727]
[1736870346916,3.51959586,3202.4,3202.2,0.31238]
[1736870347221,2.80563693,3202.5,3202.0,0.78101]
[1736870347422,2.80563693,3202.5,3202.4,0.31237]
[1736870348725,2.80563693,3202.5,3202.3,0.4807]
[1736870349223,2.80563693,3202.5,3202.3,0.79308]
[1736870349424,2.80563693,3202.5,3202.3,0.4807]
[1736870349718,2.80563693,3202.5,3202.2,3.2078]
[1736870350114,3.34986757,3202.4,3202.2,3.2078]
[1736870350511,3.2078,3202.3,3201.6,3.46208371]
[1736870350725,3.2078,3202.3,3201.9,0.31242]
[1736870350726,0.4644,3202.3,3201.9,0.31242]
[1736870350915,0.4644,3202.3,3201.6,3.46208371]
[1736870351116,3.6722,3202.3,3201.7,40.8]
[1736870351928,0.4635,3202.2,3201.7,40.8]
[1736870353918,0.4635,3202.2,3201.7,41.11243]
[1736870354925,0.4635,3202.2,3201.8,0.31243]
[1736870355120,0.4635,3202.2,3201.7,40.8]
[1736870355423,0.4635,3202.2,3201.7,41.11243]
[1736870356523,0.4635,3202.2,3201.7,40.8]
[1736870356726,0.4635,3202.2,3201.8,0.31242]
[1736870357026,0.4635,3202.2,3201.7,41.11244]
[1736870357721,0.4635,3202.2,3201.7,40.8]
[1736870357927,0.4635,3202.2,3201.8,0.31243]
[1736870358231,0.4635,3202.2,3201.7,40.8]
[1736870358429,0.4635,3202.2,3201.7,41.11243]
[1736870359130,2.72141808,3202.8,3201.7,40.8]
[1736870359331,0.31229,3203.3,3202.4,0.31236]
[1736870359539,0.7823,3203.2,3202.5,0.4668]
[1736870359825,0.47,3203.2,3202.5,0.4668]
[1736870360232,0.78229,3203.2,3202.5,0.4668]
[1736870360429,2.72141808,3203.0,3202.5,0.4668]
[1736870360631,2.72141808,3203.0,3202.2,0.5012]
[1736870360832,6.24155808,3202.7,3202.2,0.4668]
[1736870361129,3.4032677,3202.6,3202.2,0.4668]
[1736870361534,3.7156277,3202.6,3202.0,3.2078]
[1736870361723,0.4636,3202.5,3202.0,3.2078]
[1736870362637,3.2078,3202.3,3201.8,0.4642]
[1736870363026,0.4874,3202.2,3201.8,0.4642]
[1736870363227,0.4636,3202.5,3201.9,0.31242]
[1736870363422,0.4636,3202.5,3202.0,3.2078]
[1736870363626,0.4636,3202.5,3202.1,0.31239]
[1736870364226,0.4636,3202.5,3202.0,3.5202]
[1736870364634,0.4636,3202.5,3202.0,3.2078]
[1736870364937,3.61676266,3202.4,3201.8,0.77662]
[1736870365636,6.42239959,3202.4,3201.8,0.77662]
[1736870367029,6.42239959,3202.4,3201.8,0.77663]
[1736870367835,6.42239959,3202.4,3201.8,0.4642]
[1736870368033,6.42239959,3202.4,3202.0,0.3124]
[1736870368338,9.14381767,3202.4,3201.9,3.2078]
[1736870368634,3.2078,3202.3,3201.9,3.2078]
[1736870369332,2.80563693,3202.4,3201.9,3.2078]
[1736870369539,2.80563693,3202.4,3202.0,0.4975]
[1736870369734,2.80563693,3202.4,3201.9,3.2078]
[1736870369942,2.80563693,3202.4,3202.0,40.8]
[1736870370241,3.77343693,3202.4,3202.0,40.8]
[1736870370438,3.4460231,3202.3,3202.0,40.8]
[1736870370741,3.4460231,3202.3,3201.9,3.2078]
[1736870371232,3.4460231,3202.3,3201.9,44.0078]
[1736870373143,3.4460231,3202.3,3201.9,3.2078]
[1736870373735,3.9256231,3202.3,3201.9,3.2078]
[1736870373937,9.93906003,3202.3,3201.9,3.2078]
[1736870374339,10.25144003,3202.3,3201.9,3.2078]
[1736870374543,9.93906003,3202.3,3201.9,3.2078]
[1736870375041,2.72141808,3202.2,3201.9,3.2078]
[1736870375442,3.03380808,3202.2,3201.9,3.2078]
[1736870375745,3.11804693,3202.0,3201.4,0.4565]
[1736870376044,3.11804693,3202.0,3201.2,44.0078]
[1736870376045,5.92921808,3201.9,3201.2,44.0078]
[1736870376233,9.26961817,3201.9,3201.2,44.0078]
[1736870376436,0.4951,3201.8,3201.2,44.32028]
[1736870376638,0.4951,3201.8,3201.2,44.0078]
[1736870376639,2.72141808,3201.6,3201.2,44.0078]
[1736870376844,2.72141808,3201.3,3201.2,3.2078]
[1736870377040,0.31249,3201.2,3200.8,0.47]
[1736870377247,0.4951,3201.2,3200.8,40.8]
[1736870391458,3.6784,3201.7,3200.9,2.72141808]
[1736870391652,3.6784,3201.7,3201.0,3.6963]
[1736870391861,3.72012119,3201.6,3201.0,3.6963]
[1736870392048,3.40767119,3201.6,3201.0,0.4885]
[1736870393559,3.40767119,3201.6,3201.0,3.6963]
[1736870393763,3.40767119,3201.6,3201.1,0.31249]
[1736870393957,3.40767119,3201.6,3201.1,0.3125]
[1736870394261,3.40767119,3201.6,3201.2,0.31248]
[1736870394664,3.40767119,3201.6,3201.0,3.6963]
[1736870394959,2.72141808,3201.4,3201.0,0.4885]
[1736870395162,2.72141808,3201.4,3201.0,0.801]
[1736870395462,3.29586629,3201.3,3201.0,0.4885]
[1736870395951,3.29586629,3201.3,3200.8,0.31252]
[1736870397162,3.29586629,3201.3,3200.7,0.77623]
[1736870397360,2.72141808,3200.8,3200.6,3.2078]
[1736870397557,0.9555,3200.7,3200.1,3.6707]
[1736870397755,2.72141808,3200.5,3200.2,41.11258]
[1736870397959,4.48573826,3200.7,3200.2,41.11258]
[1736870398155,4.48573826,3200.7,3200.2,43.52141808]
[1736870398469,0.9555,3200.7,3200.2,43.52141808]
[1736870398762,0.9555,3200.7,3200.2,40.8]
[1736870399060,0.9555,3200.7,3200.2,41.11258]
[1736870399260,0.9555,3200.7,3200.2,40.8]
[1736870399560,0.9555,3200.7,3200.3,0.31257]
[1736870399862,0.9555,3200.7,3200.3,0.31256]
[1736870400457,0.9555,3200.7,3200.2,40.8]
[1736870401562,0.9555,3200.7,3200.3,0.31257]
[1736870401756,0.9555,3200.7,3200.2,40.8]
[1736870403361,3.43716699,3200.6,3200.1,0.4629]
[1736870403564,3.2078,3200.4,3199.9,0.4746]
[1736870403867,3.2078,3200.4,3200.0,0.3126]
[1736870404068,3.41638505,3200.3,3200.0,0.3126]
[1736870404362,3.41638505,3200.3,3199.9,0.78721]
[1736870404556,3.41638505,3200.3,3200.0,0.3126]
[1736870404763,3.41638505,3200.3,3199.9,0.4746]
[1736870404764,3.41638505,3200.3,3199.9,0.78721]
[1736870404962,3.41638505,3200.3,3199.9,0.4746]
[1736870405359,3.41638505,3200.3,3200.0,0.3126]
[1736870405568,3.41638505,3200.3,3199.9,0.4746]
[1736870405569,3.41638505,3200.3,3199.9,0.9642]
[1736870406066,3.41638505,3200.3,3199.9,0.4746]
[1736870406459,3.41638505,3200.3,3199.8,0.4521]
[1736870406765,3.72896505,3200.3,3199.8,0.4521]
[1736870407062,3.52041,3200.0,3199.3,3.7043]
[1736870407365,3.2078,3200.0,3199.3,3.2078]
[1736870407561,3.2078,3199.4,3198.6,1.4437]
[1736870407764,3.2078,3199.0,3198.3,3.2078]
[1736870407954,3.2078,3199.0,3198.4,0.4619]
[1736870408154,3.3111689,3198.9,3198.4,0.4619]
[1736870408964,3.3111689,3198.9,3198.2,0.4965]
[1736870408965,6.5189689,3198.9,3198.2,0.4965]
[1736870409165,3.2078,3199.3,3198.3,3.6697]
[1736870409366,3.2078,3199.3,3198.4,0.4853]
[1736870409567,3.5058307,3199.2,3198.4,0.4853]
[1736870409770,3.2078,3199.7,3199.2,0.31267]
[1736870410062,3.5058307,3200.0,3199.6,5.93215983]
[1736870410269,3.5058307,3200.0,3199.9,2.72435983]
[1736870410567,3.2078,3200.5,3199.9,43.52435983]
[1736870410762,3.2078,3200.5,3200.4,2.72435983]
[1736870411266,3.2078,3200.9,3200.4,8.65651966]
[1736870411471,3.2078,3200.9,3200.8,2.72435983]
[1736870411667,6.6128189,3200.9,3200.8,2.72435983]
[1736870412468,6.6128189,3200.9,3200.4,3.2078]
[1736870412772,6.6128189,3200.9,3200.8,2.72435983]
[1736870413363,11.6128189,3200.9,3200.2,2.72435983]
[1736870413568,3.2078,3200.3,3200.2,2.72435983]
[1736870413974,6.78263538,3200.3,3200.2,2.72435983]
[1736870414370,7.24243538,3200.3,3200.2,2.72435983]
[1736870414568,0.31258,3200.2,3199.5,3.6856]
[1736870414759,3.2078,3199.9,3199.8,2.72435983]
[1736870414963,0.31263,3199.8,3199.6,2.72435983]
[1736870415167,0.4633,3199.7,3199.3,2.72435983]
[1736870415476,3.2078,3199.4,3199.1,40.8]
[1736870415866,3.34534185,3199.3,3199.1,40.8]
[1736870416063,3.34534185,3199.3,3199.2,2.72435983]
[1736870417565,3.34534185,3199.3,3198.5,3.2078]
[1736870417876,3.34534185,3199.3,3198.7,2.72435983]
[1736870417877,3.2078,3199.0,3198.7,2.72435983]
[1736870418172,0.4918,3198.9,3198.8,40.8]
[1736870418379,3.80376459,3198.9,3198.8,40.8]
[1736870418671,3.31196459,3199.5,3198.8,40.8]
[1736870418876,0.4861,3199.8,3199.4,2.72435983]
[1736870419375,3.98043711,3199.8,3199.4,2.72435983]
[1736870419577,3.98043711,3199.8,3199.5,40.8]
[1736870419877,4.29306711,3199.8,3199.5,40.8]
[1736870420073,4.29306711,3199.8,3198.9,3.77627665]
[1736870420074,0.472,3199.7,3198.9,3.77627665]
[1736870420378,0.472,3199.7,3198.9,4.02146186]
[1736870420379,3.43191449,3199.6,3198.9,4.02146186]
[1736870420579,3.43191449,3199.6,3199.0,40.8]
[1736870420776,3.2078,3199.3,3199.0,40.8]
[1736870421170,3.43191449,3199.2,3199.0,40.8]
[1736870421374,0.4861,3199.1,3199.0,40.8]
[1736870421575,0.9579,3199.1,3198.3,3.30377665]
[1736870421879,3.2078,3198.6,3198.2,3.45932448]
[1736870422077,3.2078,3198.6,3198.2,0.25152448]
[1736870422282,3.55655445,3198.5,3198.1,0.4725]
[1736870422671,3.55655445,3198.5,3196.9,0.78227]
[1736870422672,3.2078,3198.2,3197.6,3.30377665]
[1736870422971,3.2078,3197.8,3197.2,3.2078]
[1736870423172,3.2078,3197.8,3197.4,0.31285]
[1736870423370,3.43503929,3197.7,3197.3,3.30377665]
[1736870423774,3.43503929,3197.7,3197.2,0.24388533]
[1736870424078,3.43503929,3197.7,3197.0,4.09556665]
[1736870424476,3.43503929,3197.7,3197.1,0.31288]
[1736870424673,3.43503929,3197.7,3197.0,3.78267665]
[1736870424875,3.43503929,3197.7,3197.3,3.30377665]
[1736870425973,3.43503929,3197.7,3197.4,40.8]
[1736870426178,3.43503929,3197.7,3197.6,3.30377665]
[1736870426381,3.43503929,3197.7,3197.4,40.8]
[1736870427375,3.2078,3197.8,3197.4,40.8]
[1736870427576,3.2078,3197.8,3197.3,3.30377665]
[1736870427778,3.2078,3197.8,3197.0,4.03834315]
[1736870427973,3.2078,3197.8,3197.0,0.7345665]
[1736870428178,3.75899221,3197.7,3197.1,40.8]
[1736870428380,3.2078,3197.4,3197.1,40.8]
[1736870428779,3.44868542,3197.3,3196.8,3.2078]
[1736870429374,3.44868542,3197.3,3196.9,40.8]
[1736870430684,0.4542,3197.7,3196.9,40.8]
[1736870430685,3.2078,3197.8,3197.1,3.30377665]
[1736870430884,3.2078,3197.8,3197.2,3.30377665]
[1736870431088,3.52062,3197.8,3197.0,0.4542]
[1736870431281,3.93462996,3198.2,3196.9,44.10377665]
[1736870431282,3.2078,3197.4,3196.9,40.8]
[1736870431488,3.2078,3197.0,3196.4,3.30377665]
[1736870431683,3.2078,3197.0,3196.3,6.82453665]
[1736870431985,3.2078,3197.0,3196.3,6.51157665]
[1736870432182,0.53792508,3196.9,3196.3,6.82453665]
[1736870432487,0.53792508,3196.9,3196.4,0.31296]
[1736870432689,0.53792508,3196.9,3196.6,3.30377665]
[1736870432985,3.2078,3197.0,3196.6,3.30377665]